bitfinex-derivatives/quotes_SOLF0:USTF0_20251026
["timestamp","ask_amount","ask_price","bid_price","bid_amount"]
[1761446817568,3.99714115,192.57,192.5,2.78]
[1761446817760,3.99714115,192.56,192.5,2.78]
[1761446818080,3.99714115,192.55,192.51,2.72]
[1761446818273,4.84317917,192.61,192.52,2.72]
[1761446818463,3.997327,192.6,192.52,2.72]
[1761446818761,3.997327,192.59,192.52,2.72]
[1761446818963,3.997327,192.58,192.52,2.72]
[1761446819272,3.997327,192.57,192.52,2.72]
[1761446819461,4.84317917,192.61,192.52,2.72]
[1761446819769,3.99729896,192.6,192.52,2.72]
[1761446819957,3.99729896,192.59,192.52,2.72]
[1761446820162,3.99729896,192.58,192.52,2.72]
[1761446820374,3.99729896,192.57,192.52,2.72]
[1761446820574,4.84317917,192.61,192.52,2.72]
[1761446820867,3.99751431,192.6,192.52,2.72]
[1761446821061,3.99900494,192.59,192.52,2.72]
[1761446821356,3.99900494,192.58,192.52,2.72]
[1761446821559,3.99900494,192.57,192.52,2.72]
[1761446821762,4.85220412,192.61,192.52,2.72]
[1761446821963,3.99965432,192.6,192.52,2.72]
[1761446822170,3.99965432,192.59,192.52,2.72]
[1761446822362,3.99965432,192.58,192.52,2.72]
[1761446822565,3.99965432,192.57,192.52,2.72]
[1761446822761,4.85220412,192.61,192.52,2.72]
[1761446822961,3.99952726,192.6,192.52,2.72]
[1761446823162,3.99952726,192.59,192.52,2.72]
[1761446823461,3.99952726,192.58,192.52,2.72]
[1761446823662,3.99952726,192.57,192.52,2.72]
[1761446823868,4.85220412,192.61,192.52,2.72]
[1761446824069,3.99944679,192.6,192.52,2.72]
[1761446824268,3.99944679,192.59,192.52,2.72]
[1761446824468,3.99944679,192.58,192.52,2.72]
[1761446824669,3.99944679,192.57,192.52,2.72]
[1761446824872,4.85220412,192.61,192.52,2.72]
[1761446825070,3.99383064,192.6,192.52,2.72]
[1761446825270,3.99383064,192.59,192.52,2.72]
[1761446825461,3.99383064,192.58,192.52,2.72]
[1761446825662,3.99383064,192.57,192.52,2.72]
[1761446825863,4.85220412,192.61,192.52,2.72]
[1761446826164,3.99400821,192.6,192.52,2.72]
[1761446826365,3.99400821,192.59,192.52,2.72]
[1761446826564,3.99400821,192.58,192.52,2.72]
[1761446826764,3.99400821,192.57,192.52,2.72]
[1761446827072,4.85220412,192.61,192.52,2.72]
[1761446827268,3.99412311,192.6,192.52,2.72]
[1761446827468,3.99412311,192.59,192.52,2.72]
[1761446827670,3.99412311,192.58,192.52,2.72]
[1761446827870,3.99412311,192.57,192.52,2.72]
[1761446828074,4.85220412,192.63,192.54,2.64]
[1761446828267,3.99465262,192.62,192.54,2.64]
[1761446828570,3.99465262,192.61,192.54,2.64]
[1761446828771,3.99465262,192.6,192.54,2.64]
[1761446828974,3.99465262,192.59,192.54,2.64]
[1761446829174,4.45148194,192.63,192.54,2.64]
[1761446829378,3.99461502,192.62,192.54,2.64]
[1761446829570,3.99461502,192.61,192.54,2.64]
[1761446829771,3.99461502,192.6,192.54,2.64]
[1761446829970,3.99461502,192.59,192.54,2.64]
[1761446830168,4.45148194,192.63,192.54,2.64]
[1761446830368,3.99406301,192.62,192.54,2.64]
[1761446830568,3.99406301,192.61,192.54,2.64]
[1761446830770,3.99406301,192.6,192.54,2.64]
[1761446831064,3.99406301,192.59,192.54,2.64]
[1761446831269,4.45148194,192.63,192.54,2.64]
[1761446831464,3.99325589,192.62,192.54,2.64]
[1761446831677,3.99325589,192.61,192.54,2.64]
[1761446831879,3.99325589,192.6,192.54,2.64]
[1761446832072,3.99325589,192.59,192.54,2.64]
[1761446832277,4.45148194,192.63,192.54,2.64]
[1761446832472,3.9934522,192.62,192.54,2.64]
[1761446832773,3.9934522,192.61,192.54,2.64]
[1761446832976,3.9934522,192.6,192.54,2.64]
[1761446833164,3.9934522,192.59,192.54,2.64]
[1761446833368,4.45148194,192.63,192.54,2.64]
[1761446833583,3.99324538,192.62,192.54,2.64]
[1761446833877,3.99324538,192.61,192.54,2.64]
[1761446834076,3.99324538,192.6,192.54,2.64]
[1761446834265,3.99324538,192.59,192.54,2.64]
[1761446834470,4.45108719,192.63,192.54,2.64]
[1761446834775,3.99310278,192.62,192.54,2.64]
[1761446834973,3.99310278,192.61,192.54,2.64]
[1761446835173,3.99310278,192.6,192.54,2.64]
[1761446835376,3.99310278,192.59,192.54,2.64]
[1761446835580,4.45108719,192.63,192.54,2.64]
[1761446835771,3.99297939,192.62,192.54,2.64]
[1761446836076,1.5190806,192.6,192.54,2.64]
[1761446836277,1.5190806,192.57,192.51,2.67]
[1761446836471,1.5190806,192.54,192.48,2.67]
[1761446836672,3.99121534,192.53,192.46,2.67]
[1761446836873,3.99121534,192.52,192.46,2.67]
[1761446837072,6.82600375,192.56,192.46,2.67]
[1761446837273,3.99106491,192.55,192.46,2.67]
[1761446837478,3.99106491,192.54,192.46,2.67]
[1761446837677,3.99106491,192.53,192.46,2.67]
[1761446837977,3.99106491,192.52,192.46,2.67]
[1761446838176,6.82600375,192.56,192.46,2.67]
[1761446838380,3.99110492,192.55,192.46,2.67]
[1761446838571,3.99110492,192.54,192.46,2.67]
[1761446838767,3.99110492,192.53,192.46,2.67]
[1761446838973,6.82600375,192.56,192.46,2.67]
[1761446839277,3.99028444,192.55,192.46,2.67]
[1761446839480,2.37491656,192.52,192.46,2.67]
[1761446839981,2.37491656,192.52,192.42,4.6766]
[1761446840183,2.37491656,192.52,192.43,2.67]
[1761446840474,3.98925667,192.51,192.43,2.67]
[1761446840678,3.98932085,192.5,192.43,2.67]
[1761446840877,2.37491656,192.52,192.43,2.67]
[1761446841079,3.98913162,192.51,192.43,2.67]
[1761446841277,3.98913162,192.5,192.43,2.67]
[1761446841484,2.37491656,192.52,192.43,2.67]
[1761446841675,3.98724658,192.51,192.43,2.67]
[1761446841872,3.98724658,192.5,192.43,2.67]
[1761446842082,3.98724658,192.49,192.43,2.67]
[1761446842288,3.98531558,192.51,192.43,2.67]
[1761446842476,3.98531558,192.5,192.43,2.67]
[1761446842776,2.37491656,192.52,192.43,2.67]
[1761446842976,3.98531558,192.51,192.43,2.67]
[1761446843176,3.98531558,192.5,192.43,2.67]
[1761446843378,2.37491656,192.52,192.43,2.67]
[1761446843573,3.98311018,192.51,192.43,2.67]
[1761446843771,3.98311018,192.5,192.43,2.67]
[1761446844082,2.37491656,192.52,192.43,2.67]
[1761446844277,3.9828951,192.51,192.43,2.67]
[1761446844475,3.9828951,192.5,192.43,2.67]
[1761446844676,3.9828951,192.51,192.43,2.67]
[1761446844876,3.97951504,192.5,192.43,2.67]
[1761446845077,3.97951504,192.51,192.43,2.67]
[1761446845274,3.97873662,192.51,192.4,2.67]
[1761446845584,3.97873662,192.5,192.4,2.67]
[1761446845787,3.97873662,192.52,192.4,2.67]
[1761446845985,3.97873662,192.51,192.4,2.67]
[1761446846181,3.97873662,192.5,192.4,2.67]
[1761446846381,3.97873662,192.52,192.4,2.67]
[1761446846578,2.37491656,192.53,192.4,2.67]
[1761446847485,6.35275197,192.53,192.4,2.67]
[1761446847787,2.37491656,192.53,192.4,2.67]
[1761446848094,3.97700502,192.55,192.4,2.67]
[1761446848385,6.35192158,192.54,192.4,2.67]
[1761446848585,3.97700502,192.53,192.4,2.67]
[1761446856080,2.37491656,192.54,192.4,2.67]
[1761446856280,6.35192158,192.54,192.4,2.67]
[1761446856480,3.97700502,192.53,192.4,2.67]
[1761446856685,2.37491656,192.54,192.4,2.67]
[1761446857083,6.35192158,192.54,192.4,2.67]
[1761446857286,3.97700502,192.53,192.4,2.67]
[1761446857483,2.37491656,192.54,192.4,2.67]
[1761446857883,6.35192158,192.54,192.4,2.67]
[1761446858080,3.97700502,192.53,192.4,2.67]
[1761446858281,3.97700502,192.56,192.4,2.67]
[1761446858484,3.97700502,192.55,192.4,2.67]
[1761446858685,3.97700502,192.54,192.4,2.67]
[1761446858885,3.97700502,192.56,192.4,2.67]
[1761446859086,3.97700502,192.55,192.4,2.67]
[1761446859283,3.97700502,192.54,192.4,2.67]
[1761446859485,3.97700502,192.56,192.4,2.67]
[1761446859685,3.97700502,192.55,192.4,2.67]
[1761446859886,3.97700502,192.54,192.4,2.67]
[1761446860190,8.39013685,192.56,192.4,2.67]
[1761446860401,3.97700502,192.55,192.4,2.67]
[1761446860584,3.97700502,192.54,192.4,2.67]
[1761446860785,3.97700502,192.53,192.4,2.67]
[1761446860985,3.97700502,192.55,192.4,2.67]
[1761446861185,3.97700502,192.54,192.4,2.67]
[1761446861392,8.38943795,192.56,192.4,2.67]
[1761446861594,3.97700502,192.55,192.4,2.67]
[1761446861781,3.97700502,192.54,192.4,2.67]
[1761446861985,3.97700502,192.55,192.4,2.67]
[1761446862186,3.97700502,192.54,192.4,2.67]
[1761446862489,3.97700502,192.55,192.4,2.67]
[1761446862791,3.97700502,192.54,192.4,2.67]
[1761446862985,3.97700502,192.55,192.4,2.67]
[1761446863179,3.97700502,192.54,192.4,2.67]
[1761446863389,3.97700502,192.55,192.4,2.67]
[1761446863688,3.97700502,192.54,192.4,2.67]
[1761446863890,3.97700502,192.55,192.4,2.67]
[1761446864087,3.97700502,192.54,192.4,2.67]
[1761446864291,3.97700502,192.55,192.4,2.67]
[1761446864485,3.97700502,192.54,192.4,2.67]
[1761446864687,3.97700502,192.55,192.4,2.67]
[1761446864982,3.97700502,192.54,192.4,2.67]
[1761446865185,3.97700502,192.55,192.4,2.67]
[1761446865384,3.97700502,192.54,192.4,2.67]
[1761446865593,3.97700502,192.55,192.4,2.67]
[1761446865793,3.97700502,192.54,192.4,2.67]
[1761446866093,3.97700502,192.55,192.4,2.67]
[1761446866296,3.97700502,192.54,192.4,2.67]
[1761446866487,3.97700502,192.55,192.4,2.67]
[1761446866787,3.97700502,192.54,192.4,2.67]
[1761446866989,3.97700502,192.55,192.4,2.67]
[1761446867184,3.97700502,192.54,192.4,2.67]
[1761446867391,3.97700502,192.55,192.4,2.67]
[1761446867589,3.97700502,192.54,192.4,2.67]
[1761446867888,3.97700502,192.55,192.4,2.67]
[1761446868092,3.97700502,192.54,192.4,2.67]
[1761446868288,3.97700502,192.53,192.4,2.67]
[1761446868486,3.97700502,192.55,192.4,2.67]
[1761446868686,3.97700502,192.54,192.4,2.67]
[1761446868891,4.83532347,192.56,192.4,2.67]
[1761446868892,3.97700502,192.53,192.4,2.67]
[1761446869094,3.97700502,192.55,192.4,2.67]
[1761446869287,3.97700502,192.54,192.4,2.67]
[1761446869488,3.97300367,192.53,192.4,2.67]
[1761446869797,3.97300367,192.52,192.4,2.67]
[1761446869989,3.97300367,192.51,192.4,2.67]
[1761446870189,3.97300367,192.53,192.4,2.67]
[1761446870385,6.34792023,192.52,192.4,2.67]
[1761446870600,3.97300367,192.51,192.4,2.67]
[1761446870789,3.97300367,192.5,192.4,2.67]
[1761446870998,3.97300367,192.51,192.4,2.67]
[1761446871296,3.97300367,192.5,192.4,2.67]
[1761446871488,3.97300367,192.51,192.4,2.67]
[1761446871688,3.97300367,192.5,192.4,2.67]
[1761446871894,3.97300367,192.51,192.4,2.67]
[1761446872092,3.97300367,192.5,192.4,2.67]
[1761446872290,3.97300367,192.51,192.4,2.67]
[1761446872486,3.97300367,192.5,192.4,2.67]
[1761446872691,3.97300367,192.51,192.4,2.67]
[1761446872894,3.97300367,192.5,192.4,2.67]
[1761446873097,3.97300367,192.51,192.4,2.67]
[1761446873299,3.97300367,192.5,192.4,2.67]
[1761446873496,3.97300367,192.51,192.4,2.67]
[1761446873694,3.97300367,192.5,192.4,2.67]
[1761446873894,3.97300367,192.51,192.4,2.67]
[1761446874097,3.97300367,192.5,192.4,2.67]
[1761446874296,3.97300367,192.51,192.4,2.67]
[1761446874498,3.97300367,192.5,192.4,2.67]
[1761446874700,3.97300367,192.51,192.4,2.67]
[1761446874895,3.97300367,192.5,192.4,2.67]
[1761446875095,3.97300367,192.51,192.4,2.67]
[1761446875295,3.97300367,192.5,192.4,2.67]
[1761446875497,3.97300367,192.49,192.4,2.67]
[1761446875697,3.97300367,192.51,192.4,2.67]
[1761446875998,3.97300367,192.5,192.4,2.67]
[1761446876198,3.97300367,192.49,192.4,2.67]
[1761446876399,3.97300367,192.51,192.4,2.67]
[1761446876596,3.97300367,192.5,192.4,2.67]
[1761446876905,3.97300367,192.49,192.4,2.67]
[1761446877111,3.97300367,192.51,192.4,2.67]
[1761446877311,3.97300367,192.5,192.4,2.67]
[1761446877607,3.97300367,192.49,192.4,2.67]
[1761446877801,3.97300367,192.48,192.4,2.67]
[1761446878004,3.97300367,192.47,192.35,2.69]
[1761446878208,3.97300367,192.5,192.35,2.69]
[1761446878409,4.82326015,192.51,192.35,2.69]
[1761446878410,3.97300367,192.49,192.35,2.69]
[1761446878607,3.97300367,192.48,192.35,2.69]
[1761446878806,3.97300367,192.47,192.35,2.69]
[1761446879004,4.82326015,192.51,192.36,2.37491656]
[1761446879204,3.97974152,192.5,192.37,2.69]
[1761446879405,3.97974152,192.49,192.37,2.69]
[1761446879604,3.97974152,192.48,192.37,2.69]
[1761446879804,3.97974152,192.47,192.37,2.69]
[1761446880006,3.97974152,192.46,192.37,2.69]
[1761446880205,3.97974152,192.49,192.37,2.69]
[1761446880410,3.97974152,192.48,192.37,2.69]
[1761446880603,3.97974152,192.47,192.37,2.69]
[1761446880909,3.97974152,192.46,192.37,2.69]
[1761446881108,4.82326015,192.5,192.37,2.69]
[1761446881408,3.98513006,192.49,192.37,2.69]
[1761446881610,3.98513006,192.48,192.37,2.69]
[1761446881797,3.98513006,192.47,192.37,2.69]
[1761446882002,3.98513006,192.46,192.37,2.69]
[1761446882204,3.98513006,192.45,192.37,2.69]
[1761446882409,4.42707341,192.49,192.37,2.69]
[1761446882602,3.98686946,192.48,192.37,2.69]
[1761446882803,3.98686946,192.47,192.37,2.69]
[1761446883097,3.98686946,192.46,192.37,2.69]
[1761446883406,3.98686946,192.45,192.37,2.69]
[1761446883600,4.42707341,192.49,192.37,2.69]
[1761446883796,3.98753954,192.48,192.37,2.69]
[1761446884010,3.98753954,192.47,192.37,2.69]
[1761446884210,3.98753954,192.46,192.37,2.69]
[1761446884510,3.98753954,192.45,192.37,2.69]
[1761446884811,4.82326015,192.49,192.37,2.69]
[1761446885004,3.98015087,192.48,192.37,2.69]
[1761446885206,3.98015087,192.47,192.37,2.69]
[1761446885408,3.98015087,192.46,192.37,2.69]
[1761446885614,3.98015087,192.45,192.37,2.69]
[1761446885806,4.82326015,192.49,192.37,2.69]
[1761446886005,3.9803093,192.48,192.37,2.69]
[1761446886206,3.9803093,192.47,192.37,2.69]
[1761446886408,3.9803093,192.46,192.37,2.69]
[1761446886601,3.9803093,192.45,192.37,2.69]
[1761446886804,4.82326015,192.49,192.37,2.69]
[1761446887006,3.98038153,192.48,192.37,2.69]
[1761446887206,3.98038153,192.47,192.37,2.69]
[1761446887413,3.98038153,192.46,192.37,2.69]
[1761446887714,3.98038153,192.45,192.37,2.69]
[1761446888011,3.98038153,192.44,192.37,2.69]
[1761446888211,3.98038153,192.43,192.37,2.69]
[1761446888414,4.82326015,192.48,192.37,2.69]
[1761446888713,3.97951453,192.47,192.37,2.69]
[1761446888913,3.97951453,192.46,192.37,2.69]
[1761446889111,3.97951453,192.45,192.37,2.69]
[1761446889311,3.97951453,192.44,192.37,2.69]
[1761446889512,3.97854424,192.43,192.37,2.69]
[1761446889705,4.82326015,192.47,192.37,2.69]
[1761446889905,3.97853966,192.46,192.37,2.69]
[1761446890105,3.97853966,192.45,192.37,2.69]
[1761446890300,2.37491656,192.48,192.37,2.69]
[1761446890301,3.97853966,192.44,192.37,2.69]
[1761446890510,3.97853966,192.43,192.37,2.69]
[1761446890702,7.19817671,192.48,192.37,2.69]
[1761446890907,3.97827301,192.47,192.37,2.69]
[1761446891106,3.97827301,192.46,192.37,2.69]
[1761446891311,3.97827301,192.45,192.37,2.69]
[1761446891510,3.97827301,192.44,192.37,2.69]
[1761446891818,7.19817671,192.48,192.37,2.69]
[1761446892016,3.97791347,192.47,192.37,2.69]
[1761446892219,3.97791347,192.46,192.37,2.69]
[1761446892515,3.97791347,192.45,192.37,2.69]
[1761446892712,3.97791347,192.44,192.37,2.69]
[1761446892911,7.19817671,192.48,192.37,2.69]
[1761446893210,3.97789259,192.47,192.37,2.69]
[1761446893411,3.97789259,192.46,192.37,2.69]
[1761446893606,3.97789259,192.45,192.37,2.69]
[1761446893819,3.97789259,192.44,192.37,2.69]
[1761446894119,3.97789259,192.43,192.37,2.69]
[1761446894318,7.19817671,192.48,192.37,2.69]
[1761446894511,3.97719418,192.47,192.37,2.69]
[1761446894823,3.97719418,192.46,192.37,2.69]
[1761446895008,3.97719418,192.45,192.37,2.69]
[1761446895209,3.97719418,192.44,192.37,2.69]
[1761446895408,7.19817671,192.48,192.37,2.69]
[1761446895409,3.97719418,192.43,192.37,2.69]
[1761446895617,7.19817671,192.48,192.37,2.69]
[1761446895821,3.97715631,192.47,192.37,2.69]
[1761446896016,3.97715631,192.46,192.37,2.69]
[1761446896207,3.97715631,192.45,192.37,2.69]
[1761446896413,3.97715631,192.44,192.37,2.69]
[1761446896707,3.97715631,192.43,192.37,2.69]
[1761446896905,7.19817671,192.48,192.37,2.69]
[1761446897110,3.97712228,192.47,192.37,2.69]
[1761446897317,3.97712228,192.46,192.37,2.69]
[1761446897524,2.37491656,192.44,192.29,2.74]
[1761446897709,2.37491656,192.4,192.29,2.74]
[1761446898824,1.52216909,192.4,192.29,2.74]
[1761446903714,1.52216909,192.41,192.29,2.74]
[1761446904825,1.52216909,192.41,192.31,2.74]
[1761446906725,1.52216909,192.38,192.31,2.74]
[1761446911929,5.4952175,192.38,192.31,2.74]
[1761446912131,1.52216909,192.38,192.31,2.74]
[1761446913227,5.49459721,192.38,192.31,2.74]
[1761446913427,1.52216909,192.38,192.31,2.74]
[1761446914334,1.52216909,192.35,192.31,2.74]
[1761446925537,1.52216909,192.35,192.22,62.86]
[1761446925743,1.52216909,192.32,192.23,2.62]
[1761446926239,1.52216909,192.42,192.27,2.62]
[1761446926438,4.03400965,192.41,192.27,2.62]
[1761446926643,4.03400965,192.4,192.27,2.62]
[1761446926838,4.03400965,192.41,192.27,2.62]
[1761446927139,1.52216909,192.42,192.3,2.62]
[1761446927346,4.03407463,192.41,192.3,2.62]
[1761446927542,4.03407463,192.4,192.3,2.62]
[1761446927743,4.03407463,192.41,192.3,2.62]
[1761446927943,4.03407463,192.4,192.3,2.62]
[1761446928147,4.03407463,192.41,192.3,2.62]
[1761446928337,4.03407463,192.4,192.3,2.62]
[1761446928543,1.52216909,192.42,192.3,2.62]
[1761446928746,4.83281405,192.46,192.31,2.62]
[1761446928938,1.52216909,192.42,192.31,2.62]
[1761446931343,4.03652,192.41,192.31,2.62]
[1761446931645,1.52216909,192.42,192.31,2.62]
[1761446931849,4.036517,192.41,192.31,2.62]
[1761446932144,1.52216909,192.42,192.31,2.62]
[1761446932350,4.03671197,192.41,192.31,2.62]
[1761446932643,1.52216909,192.42,192.31,2.62]
[1761446932841,4.0365729,192.41,192.31,2.62]
[1761446933041,1.52216909,192.42,192.31,2.62]
[1761446933244,4.0365699,192.41,192.31,2.62]
[1761446933444,1.52216909,192.42,192.31,2.62]
[1761446933647,4.03689988,192.41,192.31,2.62]
[1761446933850,1.52216909,192.42,192.31,2.62]
[1761446934039,4.03689988,192.41,192.31,2.62]
[1761446934339,1.52216909,192.42,192.31,2.62]
[1761446934540,4.03724167,192.41,192.31,2.62]
[1761446934740,1.52216909,192.42,192.31,2.62]
[1761446934939,4.03724167,192.41,192.31,2.62]
[1761446935139,1.52216909,192.42,192.31,2.62]
[1761446935342,4.03747414,192.41,192.31,2.62]
[1761446935544,1.52216909,192.42,192.31,2.62]
[1761446935751,4.03747414,192.41,192.31,2.62]
[1761446935950,1.52216909,192.42,192.31,2.62]
[1761446936247,4.03747414,192.41,192.31,2.62]
[1761446936457,1.52216909,192.41,192.31,2.62]
[1761446941055,1.52216909,192.41,192.32,4.6789]
[1761446941255,1.52216909,192.41,192.33,2.68]
[1761446952454,1.52216909,192.41,192.34,2.88]
[1761446956971,1.52216909,192.35,192.25,2.88]
[1761446957763,1.52216909,192.32,192.29,2.88]
[1761446958870,2.3800781,192.33,192.29,2.88]
[1761446959074,2.3800781,192.33,192.25,2.88]
[1761446968273,2.3800781,192.33,192.25,4.6807]
[1761446968479,2.3800781,192.33,192.26,2.88]
[1761446976176,6.44907557,192.33,192.26,2.88]
[1761446976378,2.3800781,192.33,192.26,2.88]
[1761446990294,2.3800781,192.35,192.26,2.88]
[1761446991104,6.4474284,192.35,192.26,2.88]
[1761446991296,2.3800781,192.35,192.26,2.88]
[1761446991694,4.06874958,192.38,192.26,2.88]
[1761446991898,6.44882768,192.37,192.26,2.88]
[1761446992207,4.06874958,192.36,192.26,2.88]
[1761446992393,4.06874958,192.35,192.26,2.88]
[1761446992600,2.3800781,192.37,192.26,2.88]
[1761446992797,4.06898294,192.36,192.26,2.88]
[1761446993002,4.06898294,192.35,192.26,2.88]
[1761446993202,2.3800781,192.37,192.26,2.88]
[1761446993402,4.06898294,192.36,192.26,2.88]
[1761446993607,4.06898294,192.35,192.26,2.88]
[1761446993811,2.3800781,192.37,192.26,2.88]
[1761446994005,4.06942444,192.36,192.26,2.88]
[1761446994306,4.06942444,192.35,192.26,2.88]
[1761446994510,2.3800781,192.37,192.26,2.88]
[1761446994705,4.07044137,192.36,192.26,2.88]
[1761446994904,4.07044137,192.35,192.26,2.88]
[1761446995108,2.3800781,192.37,192.26,2.88]
[1761446995411,4.07039406,192.36,192.26,2.88]
[1761446995606,4.07039406,192.35,192.26,2.88]
[1761446995908,4.07039406,192.34,192.26,2.88]
[1761446996109,2.3800781,192.37,192.26,2.88]
[1761446996309,4.07168517,192.36,192.26,2.88]
[1761446996508,4.07168517,192.35,192.26,2.88]
[1761446996709,4.07168517,192.34,192.26,2.88]
[1761446996912,2.3800781,192.37,192.26,2.88]
[1761446997107,4.07261511,192.36,192.26,2.88]
[1761446997304,4.07261511,192.35,192.26,2.88]
[1761446997498,4.07261511,192.34,192.26,2.88]
[1761446997702,2.3800781,192.37,192.26,2.88]
[1761446997901,4.07400685,192.36,192.26,2.88]
[1761446998106,4.07400685,192.35,192.26,2.88]
[1761446998409,4.07400685,192.34,192.26,2.88]
[1761446998710,2.3800781,192.37,192.26,2.88]
[1761446998905,4.07552941,192.36,192.26,2.88]
[1761446999107,4.07552941,192.35,192.26,2.88]
[1761446999309,4.07552941,192.34,192.26,2.88]
[1761446999611,4.07552941,192.33,192.26,2.88]
[1761446999806,2.3800781,192.37,192.26,2.88]
[1761447000007,4.07775623,192.36,192.26,2.88]
[1761447000310,4.07775623,192.35,192.26,2.88]
[1761447000510,4.07775623,192.34,192.26,2.88]
[1761447000706,4.07962262,192.33,192.26,2.88]
[1761447000912,7.2242874,192.37,192.26,2.88]
[1761447001110,4.07975563,192.36,192.26,2.88]
[1761447001308,4.07975563,192.35,192.26,2.88]
[1761447001507,4.07975563,192.34,192.26,2.88]
[1761447001704,4.07975563,192.33,192.26,2.88]
[1761447001904,4.07975563,192.32,192.26,2.88]
[1761447002109,4.8442093,192.36,192.26,2.88]
[1761447002310,4.08221777,192.35,192.26,2.88]
[1761447002611,4.08221777,192.34,192.26,2.88]
[1761447002806,4.08221777,192.33,192.26,2.88]
[1761447003009,4.08221777,192.32,192.26,2.88]
[1761447003203,4.08221777,192.31,192.26,2.88]
[1761447003415,4.8442093,192.36,192.26,2.88]
[1761447003611,4.08435694,192.35,192.26,2.88]
[1761447003809,4.08435694,192.34,192.26,2.88]
[1761447004011,4.08435694,192.33,192.26,2.88]
[1761447004209,4.08435694,192.32,192.26,2.88]
[1761447004410,4.8442093,192.36,192.26,2.88]
[1761447004610,4.05219072,192.35,192.26,2.88]
[1761447004908,4.05219072,192.34,192.26,2.88]
[1761447005108,4.05219072,192.33,192.26,2.88]
[1761447005317,4.05219072,192.32,192.26,2.88]
[1761447005516,4.8442093,192.36,192.26,2.88]
[1761447005708,4.05146596,192.35,192.26,2.88]
[1761447005909,4.05146596,192.34,192.26,2.88]
[1761447006111,4.05146596,192.33,192.26,2.88]
[1761447006314,4.05146596,192.32,192.26,2.88]
[1761447006513,4.8442093,192.36,192.26,2.88]
[1761447006714,4.05163748,192.35,192.26,2.88]
[1761447006910,4.05163748,192.34,192.26,2.88]
[1761447007115,4.05163748,192.33,192.26,2.88]
[1761447007318,4.05163748,192.32,192.26,2.88]
[1761447007520,4.8442093,192.36,192.26,2.88]
[1761447007719,4.05166735,192.35,192.26,2.88]
[1761447007918,4.05166735,192.34,192.26,2.88]
[1761447008118,4.05166735,192.33,192.26,2.88]
[1761447008418,4.05166735,192.32,192.26,2.88]
[1761447008619,4.8442093,192.36,192.26,2.88]
[1761447008917,4.05167101,192.35,192.26,2.88]
[1761447009117,4.05167101,192.34,192.26,2.88]
[1761447009317,4.05167101,192.33,192.26,2.88]
[1761447009520,4.05167101,192.32,192.26,2.88]
[1761447009725,4.05167101,192.31,192.26,2.88]
[1761447009919,4.49444809,192.35,192.26,2.88]
[1761447010224,4.03363326,192.34,192.26,2.88]
[1761447010424,4.03363326,192.33,192.26,2.88]
[1761447010622,4.03363326,192.32,192.26,2.88]
[1761447010922,4.03363326,192.31,192.26,2.88]
[1761447011125,9.33875025,192.35,192.26,2.88]
[1761447011327,4.03370446,192.34,192.26,2.88]
[1761447011519,4.03370446,192.33,192.26,2.88]
[1761447011716,4.03370446,192.32,192.26,2.88]
[1761447011915,4.03370446,192.31,192.26,2.88]
[1761447012116,4.03355133,192.3,192.26,2.88]
[1761447012425,4.8442093,192.34,192.26,2.88]
[1761447012727,6.41357374,192.33,192.26,2.88]
[1761447013025,4.03349564,192.32,192.26,2.88]
[1761447013219,4.03349564,192.31,192.26,2.88]
[1761447013416,4.03349564,192.3,192.26,2.88]